bitfinex-derivatives/quotes_ETHF0:USTF0_20250505
["timestamp","ask_amount","ask_price","bid_price","bid_amount"]
[1746480246640,11.71566034,1816.5,1816.4,4.62024]
[1746480247038,11.71566034,1816.5,1816.4,45.42024]
[1746480247443,9.90191237,1816.5,1816.4,45.42024]
[1746480251943,11.00309237,1816.5,1816.4,45.42024]
[1746480252145,11.71566034,1816.5,1816.4,45.42024]
[1746480252639,12.81684034,1816.5,1816.4,45.42024]
[1746480257139,11.71566034,1816.5,1816.4,47.10124]
[1746480257340,11.71566034,1816.5,1816.4,47.92514]
[1746480258245,12.81684034,1816.5,1816.4,47.92514]
[1746480258544,9.22856034,1816.5,1816.4,47.92514]
[1746480260847,3.732,1816.5,1816.4,47.92514]
[1746480298370,5.26961565,1816.6,1816.5,1.10118]
[1746480298667,5.26961565,1816.6,1816.5,2.71568]
[1746480299169,9.00161565,1816.6,1816.5,43.51568]
[1746480300471,7.41391565,1816.6,1816.5,46.72348]
[1746480300659,7.41391565,1816.6,1816.5,47.54008]
[1746480300862,7.41391565,1816.6,1816.5,52.54008]
[1746480301271,5.49656034,1816.6,1816.5,52.54008]
[1746480301871,4.34506034,1816.6,1816.5,52.54008]
[1746480302370,4.65317459,1816.8,1816.7,1.10106]
[1746480302670,4.65317459,1816.8,1816.7,7.82386]
[1746480303169,4.65317459,1816.8,1816.7,52.35586]
[1746480303774,4.65317459,1816.8,1816.7,57.35586]
[1746480304176,3.48619833,1816.9,1816.8,1.101]
[1746480304474,6.74e-06,1816.9,1816.8,3.90751819]
[1746480304668,6.74e-06,1816.9,1816.8,8.90751819]
[1746480304878,6.74e-06,1816.9,1816.8,49.70751819]
[1746480305069,6.74e-06,1816.9,1816.8,53.43951819]
[1746480305379,6.74e-06,1816.9,1816.8,53.87362638]
[1746480305575,6.74e-06,1816.9,1816.8,54.72782638]
[1746480305873,1.6017,1817.5,1817.1,2.75197]
[1746480306076,1.6017,1817.5,1817.4,1.10063]
[1746480306077,5.3337,1817.5,1817.4,1.10063]
[1746480307577,10.3337,1817.5,1817.4,1.10063]
[1746480308864,10.3337,1817.5,1817.2,3.514]
[1746480309071,4.9378,1817.4,1817.3,1.10069]
[1746480309269,1.73,1817.4,1817.3,1.10069]
[1746480310279,5.462,1817.4,1817.3,1.10069]
[1746480313779,6.56263,1817.4,1817.3,1.10069]
[1746480313980,5.462,1817.4,1817.3,1.10069]
[1746480314775,14.77047,1817.4,1817.2,3.512]
[1746480315077,8.04047,1817.4,1817.3,1.10069]
[1746480315379,13.04047,1817.4,1817.3,1.10069]
[1746480316388,1.10082,1817.2,1817.1,1.10078]
[1746480316781,1.10077,1817.3,1817.2,1.10072]
[1746480317191,9.83277,1817.3,1817.2,1.10072]
[1746480318390,1.10079,1817.2,1817.1,1.10077]
[1746480319093,4.83279,1817.2,1817.1,1.10077]
[1746480319282,3.732,1817.2,1817.1,1.10077]
[1746480320587,3.732,1817.2,1816.8,40.8]
[1746480320588,2.85279,1816.7,1816.2,7.35954547]
[1746480320792,1.1013,1816.3,1816.2,7.35954547]
[1746480320989,1.1013,1816.3,1816.2,48.15954547]
[1746480321189,4.8333,1816.3,1816.2,48.15954547]
[1746480321591,3.732,1816.3,1816.2,49.26090547]
[1746480322090,3.732,1816.3,1816.2,52.77290547]
[1746480322396,3.732,1816.3,1816.2,49.26090547]
[1746480322691,4.8333,1816.3,1816.2,49.26090547]
[1746480324087,4.8333,1816.3,1816.2,41.90136]
[1746480324692,4.8333,1816.3,1816.2,40.8]
[1746480325292,1.10136,1816.2,1816.1,5.2015]
[1746480325493,1.93706,1816.2,1816.1,3.512]
[1746480325686,3.66816,1816.2,1816.1,44.312]
[1746480326194,7.40016,1816.2,1816.1,44.312]
[1746480327296,1.10164,1815.8,1815.5,9.47526]
[1746480327488,1.10164,1815.8,1815.7,1.10162]
[1746480327689,1.10164,1815.8,1815.7,41.90162]
[1746480327889,1.10164,1815.8,1815.7,40.8]
[1746480328195,4.83364,1815.8,1815.7,40.8]
[1746480328695,7.22324,1815.8,1815.7,40.8]
[1746480329292,1.10166,1815.7,1815.6,1.5931]
[1746480329492,6.75026,1815.7,1815.6,1.5931]
[1746480329797,1.10172,1815.6,1815.5,4.61476]
[1746480329986,2.69812,1815.6,1815.5,4.61476]
[1746480330190,6.43012,1815.6,1815.5,4.61476]
[1746480330385,6.43012,1815.6,1815.5,45.41476]
[1746480331200,6.43012,1815.6,1815.5,47.09246]
[1746480331796,6.43012,1815.6,1815.5,45.41476]
[1746480332988,3.732,1815.6,1815.5,45.41476]
[1746480333397,3.732,1815.6,1815.5,46.27266]
[1746480335197,1.10155,1815.9,1815.8,1.1016]
[1746480335399,1.10158,1815.9,1815.6,2.4829]
[1746480335699,1.10158,1815.9,1815.8,1.1016]
[1746480335998,1.94753,1816.0,1815.8,1.1016]
[1746480336201,1.10148,1816.0,1815.9,2.78654]
[1746480336401,3.2078,1816.1,1815.9,2.78654]
[1746480336602,4.30922,1816.1,1816.0,1.685]
[1746480336801,4.30922,1816.1,1816.0,2.78648]
[1746480337003,4.30922,1816.1,1816.0,3.60368]
[1746480337202,8.04122,1816.1,1816.0,3.60368]
[1746480339302,6.9398,1816.1,1816.0,3.60368]
[1746480346102,4.0282,1816.6,1816.3,1.10129]
[1746480346298,1.10122,1816.5,1816.4,1.10124]
[1746480346499,2.82662,1816.5,1816.4,1.10124]
[1746480347410,6.55862,1816.5,1816.4,2.66984]
[1746480347800,3.732,1816.5,1816.4,2.66984]
[1746480350111,3.732,1816.5,1816.4,6.20684]
[1746480352310,0.1,1816.7,1816.6,1.10112]
[1746480352907,0.1,1816.7,1816.6,42.69262]
[1746480353110,3.832,1816.7,1816.6,42.69262]
[1746480357810,3.832,1816.7,1816.6,44.27892]
[1746480358914,3.832,1816.7,1816.6,45.14532]
[1746480359709,3.832,1816.7,1816.6,41.90112]
[1746480360110,3.832,1816.7,1816.6,43.62462]
[1746480362419,4.93306,1816.7,1816.6,43.62462]
[1746480362607,6.51356,1816.7,1816.6,41.90112]
[1746480363719,6.51356,1816.7,1816.6,40.8]
[1746480364019,6.51356,1816.7,1816.6,41.90112]
[1746480367425,6.51356,1816.7,1816.6,43.50502]
[1746480371621,3.832,1816.7,1816.6,43.50502]
[1746480375021,4.93306,1816.7,1816.6,43.50502]
[1746480375825,3.832,1816.7,1816.6,43.50502]
[1746480377725,3.832,1816.7,1816.6,1.10112]
[1746480377926,4.93306,1816.7,1816.6,2.76042]
[1746480378423,4.93306,1816.7,1816.6,43.56042]
[1746480384931,4.93306,1816.7,1816.6,47.08042]
[1746480388029,6.54816,1816.7,1816.6,47.08042]
[1746480389533,9.75596,1816.7,1816.6,47.08042]
[1746480391230,9.75596,1816.7,1816.6,45.9793]
[1746480391534,9.75596,1816.7,1816.6,47.08042]
[1746480392938,9.75596,1816.7,1816.6,45.9793]
[1746480393737,9.75596,1816.7,1816.6,47.08042]
[1746480395742,9.75596,1816.7,1816.6,43.56042]
[1746480395939,9.75596,1816.7,1816.6,42.4593]
[1746480396142,1.10112,1816.6,1816.5,1.10115]
[1746480396443,1.10112,1816.6,1816.5,2.70415]
[1746480396634,1.10112,1816.6,1816.5,43.50415]
[1746480397039,2.76632,1816.6,1816.5,43.50415]
[1746480397239,6.49832,1816.6,1816.5,43.50415]
[1746480399731,6.49832,1816.6,1816.5,42.403]
[1746480400043,6.49832,1816.6,1816.5,43.50418]
[1746480400243,8.15002,1816.6,1816.3,1.10125]
[1746480400442,1.1013,1816.4,1816.3,1.10125]
[1746480400740,1.1013,1816.4,1816.3,43.46855]
[1746480401243,4.8333,1816.4,1816.3,43.46855]
[1746480401642,4.8333,1816.4,1816.3,42.3673]
[1746480402837,1.1013,1816.3,1816.2,1.92425]
[1746480403144,4.8333,1816.3,1816.2,2.4861]
[1746480403346,4.8333,1816.3,1816.2,43.2861]
[1746480404245,4.8333,1816.3,1816.2,44.38746]
[1746480404446,4.8333,1816.3,1816.2,43.2861]
[1746480407151,3.732,1816.3,1816.2,44.38746]
[1746480412149,3.2078,1816.5,1816.4,1.10124]
[1746480412450,3.2078,1816.5,1816.4,4.61624]
[1746480412849,3.2078,1816.5,1816.4,5.44364]
[1746480413257,6.9398,1816.5,1816.4,5.44364]
[1746480414755,3.732,1816.5,1816.4,5.44364]
[1746480418958,3.732,1816.5,1816.4,46.24364]
[1746480419858,3.732,1816.5,1816.4,49.45144]
[1746480420251,3.3078,1816.7,1816.6,1.10112]
[1746480420453,3.3078,1816.7,1816.5,3.58764]
[1746480420651,4.40886,1816.7,1816.6,2.73402]
[1746480420852,3.3078,1816.7,1816.6,2.73402]
[1746480421147,7.0398,1816.7,1816.6,2.73402]
[1746480424161,8.14086,1816.7,1816.6,1.10112]
[1746480424566,8.14086,1816.7,1816.6,2.73492]
[1746480424861,8.14086,1816.7,1816.6,43.53492]
[1746480426263,8.98326,1816.7,1816.6,43.53492]
[1746480426868,10.69916,1816.7,1816.6,43.53492]
[1746480427765,7.49136,1816.7,1816.6,43.53492]
[1746480429168,3.832,1816.7,1816.6,43.53492]
[1746480429869,4.93306,1816.7,1816.6,41.90112]
[1746480430168,6.53826,1816.7,1816.6,41.90112]
[1746480430561,6.53826,1816.7,1816.6,43.56302]
[1746480430761,6.53826,1816.7,1816.6,1.10112]
[1746480431059,7.36056,1816.7,1816.6,1.10112]
[1746480431964,1.10112,1816.6,1816.5,43.56302]
[1746480432164,7.34442,1816.6,1816.5,43.56302]
[1746480446976,4.83312,1816.6,1816.5,43.56302]
[1746480447783,3.732,1816.6,1816.5,43.56302]
[1746480450593,4.83312,1816.6,1816.5,43.56302]
[1746480450891,3.732,1816.6,1816.5,43.56302]
[1746480460592,2.29022,1816.6,1816.5,43.56302]
[1746480460792,7.35321725,1817.0,1816.6,2.7528]
[1746480460998,7.35321725,1817.0,1816.9,1.10094]
[1746480461396,7.35321725,1817.0,1816.9,49.34214]
[1746480462297,7.35321725,1817.0,1816.9,44.34214]
[1746480465400,6.65669,1817.5,1817.4,1.10063]
[1746480466110,10.38869,1817.5,1817.4,2.70183]
[1746480466515,6.9398,1817.5,1817.4,2.70183]
[1746480467413,3.732,1817.5,1817.4,2.70183]
[1746480469810,4.83257,1817.5,1817.4,2.70183]
[1746480473816,6.46587,1817.5,1817.4,2.70183]
[1746480475517,2.75159,1817.4,1817.1,6.27602]
[1746480475817,1.10074,1817.3,1817.2,1.10069]
[1746480476019,2.80024,1817.3,1817.2,1.10069]
[1746480476213,6.53224,1817.3,1817.2,1.10069]
[1746480477220,1.10075,1817.2,1817.1,4.62479]
[1746480477412,2.83545,1817.2,1817.1,4.62479]
[1746480478218,6.56745,1817.2,1817.1,4.62479]
[1746480481219,9.77525,1817.2,1817.1,4.62479]
[1746480481822,6.56745,1817.2,1817.1,4.62479]
[1746480482623,6.56745,1817.2,1817.1,6.29419]
[1746480494532,3.732,1817.2,1817.1,6.29419]
[1746480495929,3.732,1817.2,1817.1,11.29419]
[1746480496234,3.732,1817.2,1817.1,6.29419]
[1746480497230,3.732,1817.2,1817.1,11.29419]
[1746480497829,3.732,1817.2,1817.1,14.50199]
[1746480498125,1.93805,1817.6,1817.5,1.10057]
[1746480499235,4.5695,1817.6,1817.3,0.7831]
[1746480499434,1.10063,1817.4,1817.3,0.7831]
[1746480499725,1.10063,1817.4,1817.3,2.3995]
[1746480499931,2.77153,1817.4,1817.3,2.3995]
[1746480500131,6.50353,1817.4,1817.3,2.3995]
[1746480500332,1.10075,1817.2,1817.1,3.524]
[1746480500535,1.10075,1817.2,1817.1,4.62481]
[1746480501030,1.10075,1817.2,1817.1,6.24121]
[1746480501231,4.83275,1817.2,1817.1,6.24121]
[1746480502930,3.732,1817.2,1817.1,6.24121]
[1746480503132,4.83275,1817.2,1817.1,6.24121]
[1746480509740,7.21905,1817.2,1817.1,6.24121]
[1746480510633,7.21905,1817.2,1817.1,5.1404]
[1746480511138,7.21905,1817.2,1817.1,1.6164]
[1746480511341,1.10088,1817.0,1816.9,41.9009]
[1746480511639,8.53439,1817.1,1816.6,2.7528]
[1746480511832,6.8322,1816.9,1816.8,1.10096]
[1746480512033,6.8322,1816.9,1816.8,41.90096]
[1746480512234,3.6244,1816.9,1816.8,41.90096]
[1746480512441,3.6244,1816.9,1816.8,1.10096]
[1746480512641,6.8322,1816.9,1816.8,1.10096]
[1746480513149,7.3564,1816.9,1816.8,1.10096]
[1746480513337,10.5642,1816.9,1816.8,1.10096]
[1746480513537,7.3564,1816.9,1816.8,1.10096]
[1746480515138,9.4632,1816.9,1816.7,42.3752]
[1746480515342,1.101,1816.8,1816.7,43.47621]
[1746480516135,4.833,1816.8,1816.7,43.47621]
[1746480522045,4.833,1816.8,1816.7,42.3752]
[1746480522251,6.4623,1816.8,1816.7,43.47626]
[1746480525648,6.4623,1816.8,1816.7,42.3752]
[1746480525847,4.833,1816.8,1816.7,43.47626]
[1746480531959,3.732,1816.8,1816.7,43.47626]
[1746480533360,3.732,1816.8,1816.7,46.98926]
[1746480535760,4.833,1816.8,1816.7,46.98926]
[1746480536461,3.732,1816.8,1816.7,46.98926]
[1746480542068,2.70447,1817.2,1816.7,46.98926]
[1746480542069,2.70447,1817.2,1817.1,1.10081]
[1746480542657,1.10077,1817.2,1817.1,1.10081]
[1746480542863,4.30854,1817.3,1817.2,1.10075]
[1746480543165,8.04054,1817.3,1817.2,1.10075]
[1746480543567,8.04054,1817.3,1817.2,2.78255]
[1746480545961,4.83269,1817.3,1817.2,2.78255]
[1746480547668,3.732,1817.3,1817.2,2.78255]
[1746480557272,4.8494,1817.6,1817.5,1.10057]
[1746480557470,5.94991,1817.6,1817.5,1.10057]
[1746480557670,5.94991,1817.6,1817.5,2.68697]
[1746480558076,9.68191,1817.6,1817.5,2.68697]
[1746480559879,8.5814,1817.6,1817.5,2.68697]
[1746480560280,9.68191,1817.6,1817.5,2.68697]
[1746480561684,6.47411,1817.6,1817.5,2.68697]
[1746480562375,5.3736,1817.6,1817.5,2.68697]
[1746480562570,5.3736,1817.6,1817.5,3.50937]
[1746480562882,6.47411,1817.6,1817.5,3.50937]
[1746480563381,5.3736,1817.6,1817.5,3.50937]
[1746480563684,3.732,1817.6,1817.5,3.50937]
[1746480564985,4.83251,1817.6,1817.5,3.50937]
[1746480565188,3.732,1817.6,1817.5,3.50937]
[1746480566085,4.83251,1817.6,1817.5,3.50937]
[1746480566482,4.83251,1817.6,1817.5,2.4088]
[1746480566682,4.83251,1817.6,1817.5,2.68697]
[1746480566883,6.49201,1817.6,1817.5,2.68697]
[1746480567685,6.49201,1817.6,1817.5,1.5864]
[1746480568586,6.49201,1817.6,1817.5,2.68697]
[1746480569188,10.3915,1817.6,1816.8,3.512]
[1746480569488,1.10099,1816.9,1816.8,3.512]
[1746480569685,1.10099,1816.9,1816.8,5.1703]
[1746480569883,4.30879,1816.9,1816.8,5.1703]
[1746480570090,8.04079,1816.9,1816.8,45.9703]
[1746480570387,9.67209,1816.9,1816.8,47.0713]
[1746480573587,9.67204,1816.9,1816.8,47.0713]
[1746480573790,8.5711,1816.9,1816.8,47.0713]
[1746480574389,6.46424,1816.9,1816.8,47.0713]
[1746480574578,4.83294,1816.9,1816.8,47.0713]
[1746480574783,3.732,1816.9,1816.8,47.0713]
[1746480574991,4.83294,1816.9,1816.8,47.0713]
[1746480600511,3.732,1816.9,1816.8,47.0713]
[1746480601024,4.83294,1816.9,1816.8,47.0713]
[1746480601627,3.732,1816.9,1816.8,47.0713]
[1746480601927,4.83294,1816.9,1816.8,47.0713]
[1746480603127,3.732,1816.9,1816.8,47.0713]
[1746480609433,4.83294,1816.9,1816.8,47.0713]
[1746480612522,4.83294,1816.9,1816.8,6.2713]
[1746480613032,3.732,1816.9,1816.8,6.2713]
[1746480613331,4.83294,1816.9,1816.8,6.2713]
[1746480624942,3.732,1816.9,1816.8,6.2713]
[1746480626446,4.83294,1816.9,1816.8,6.2713]
[1746480628547,4.83294,1816.9,1816.8,47.0713]
[1746480629748,3.732,1816.9,1816.8,47.0713]
[1746480630250,4.83294,1816.9,1816.8,47.0713]
[1746480630651,5.68094,1816.9,1816.8,47.0713]
[1746480630844,7.40314,1816.9,1816.8,47.0713]
[1746480636650,1.10118,1816.5,1816.4,10.77419907]
[1746480636844,1.10118,1816.5,1816.4,14.34043907]
[1746480637040,4.83318,1816.5,1816.4,55.14043907]
[1746480637252,8.04098,1816.5,1816.4,53.21689907]
[1746480637444,9.71768,1816.5,1816.4,53.21689907]
[1746480637641,9.71768,1816.5,1816.4,54.31813907]
[1746480640049,9.71768,1816.5,1816.4,47.05594]
[1746480644852,9.71768,1816.5,1816.4,45.9547]
[1746480645054,9.71768,1816.5,1816.4,44.312]
[1746480646953,9.71768,1816.5,1816.4,3.512]
[1746480648352,1.10124,1816.4,1816.3,42.4131]
[1746480649159,4.83324,1816.4,1816.3,43.5144]
[1746480649359,6.42284,1816.4,1816.3,42.4131]
[1746480651757,6.42284,1816.4,1816.3,43.5144]
[1746480652358,6.42284,1816.4,1816.3,42.4131]
[1746480653551,6.42284,1816.4,1816.3,43.5144]
[1746480653755,4.83324,1816.4,1816.3,43.5144]
[1746480654157,4.83324,1816.4,1816.3,42.4131]
[1746480654360,4.83324,1816.4,1816.3,43.5144]
[1746480655354,8.04104,1816.4,1816.3,43.5144]
[1746480656458,8.04104,1816.4,1816.3,42.4131]
[1746480656660,8.04104,1816.4,1816.3,1.6131]
[1746480656859,1.1013,1816.3,1816.2,1.95156]
[1746480657153,1.1013,1816.3,1816.2,3.58956]
[1746480657360,1.1013,1816.3,1816.2,2.4882]
[1746480658157,4.8333,1816.3,1816.2,2.4882]
[1746480658660,4.8333,1816.3,1816.2,3.58956]
[1746480663870,4.8333,1816.3,1816.2,2.4882]
[1746480664474,4.8333,1816.3,1816.2,3.58956]
[1746480665277,4.8333,1816.3,1816.2,2.4882]
[1746480666372,8.0411,1816.3,1816.2,2.4882]
[1746480668181,10.5187,1816.3,1816.2,2.4882]
[1746480671083,7.3109,1816.3,1816.2,2.4882]
[1746480671284,10.5187,1816.3,1816.2,2.4882]
[1746480671682,10.5187,1816.3,1816.2,1.638]
[1746480671683,8.8709,1816.3,1816.2,1.638]
[1746480671883,10.5835,1816.3,1816.2,1.638]
[1746480672782,8.0411,1816.3,1816.2,1.638]
[1746480677082,10.476,1816.3,1816.2,1.638]
[1746480677590,1.10166,1815.8,1815.7,4.61362]
[1746480677785,1.10166,1815.8,1815.7,6.29002]
[1746480677985,1.10166,1815.8,1815.7,47.09002]
[1746480678186,4.83366,1815.8,1815.7,47.09002]
[1746480678492,4.83366,1815.8,1815.7,43.57802]
[1746480679094,4.83366,1815.8,1815.7,42.4764]
[1746480679593,4.83366,1815.8,1815.7,45.20626]
[1746480679782,4.83366,1815.8,1815.7,40.8]
[1746480679986,8.04146,1815.8,1815.7,40.8]
[1746480680883,1.10166,1815.7,1815.6,1.6282]
[1746480681395,4.83366,1815.7,1815.6,42.4282]
[1746480681590,7.20836,1815.7,1815.6,42.4282]
[1746480683901,7.20836,1815.7,1815.6,1.6282]
[1746480685994,1.102,1815.2,1815.1,4.61294]
[1746480686196,4.3098,1815.2,1815.1,1.7212]
[1746480686592,1.10203,1815.1,1815.0,0.8391]
[1746480686793,3.55963,1815.1,1815.0,2.5603]
[1746480687096,1.10215,1814.9,1814.8,1.10218]
[1746480687301,1.10212,1815.0,1814.9,1.10212]
[1746480688003,1.10215,1814.9,1814.8,2.82335]
[1746480689300,4.83415,1814.9,1814.8,2.82335]
[1746480690402,1.10221,1814.8,1814.7,41.90223]
[1746480690600,1.10221,1814.8,1814.7,2.71293]
[1746480691095,4.83421,1814.8,1814.7,43.51293]
[1746480692603,4.83421,1814.8,1814.7,42.4107]
[1746480693104,8.04201,1814.8,1814.7,42.4107]
[1746480693401,8.04201,1814.8,1814.7,1.6107]
[1746480693902,1.10239,1814.5,1814.4,41.90242]
[1746480694104,1.10239,1814.5,1814.4,44.36142]
[1746480694800,1.10239,1814.5,1814.4,43.259]
[1746480695207,4.83439,1814.5,1814.4,44.36145]
[1746480695405,4.83439,1814.5,1814.4,43.259]
[1746480697100,1.10257,1814.2,1814.1,1.10258]
[1746480697305,4.83439,1814.5,1814.4,1.728]
[1746480697907,4.83439,1814.5,1814.4,2.5774]
[1746480698502,4.83439,1814.5,1814.4,3.67985]
[1746480699911,4.83439,1814.5,1814.4,2.5774]
[1746480700110,4.83439,1814.5,1814.4,3.67985]
[1746480701301,4.83439,1814.5,1814.4,2.5774]
[1746480701705,4.83439,1814.5,1814.4,3.67985]
[1746480702513,4.83439,1814.5,1814.4,2.5774]
[1746480702712,4.83439,1814.5,1814.4,3.67985]
[1746480703010,12.245,1814.5,1813.3,3.2078]
[1746480703214,12.245,1814.5,1813.1,8.85639907]
[1746480703215,3.2078,1813.4,1813.1,8.85639907]
[1746480703514,4.31092,1813.3,1813.2,1.563]
[1746480703706,4.31092,1813.3,1813.2,3.2154]
[1746480703909,4.31092,1813.3,1813.2,8.2154]
[1746480704412,3.2078,1813.3,1813.2,9.31858]
[1746480704809,3.2078,1813.3,1813.2,12.83258]
[1746480705014,3.2078,1813.5,1813.3,1.10312]
[1746480705211,4.31084,1813.5,1813.4,5.077]
[1746480705917,3.2078,1813.5,1813.4,11.18006]
[1746480706208,3.2078,1813.5,1813.4,14.91206]
[1746480707706,3.2078,1813.5,1813.4,9.91206]
[1746480708214,3.2078,1813.5,1813.4,50.71206]
[1746480708415,3.2078,1813.5,1813.4,47.19806]
[1746480708715,3.2078,1813.5,1813.4,50.71306]
[1746480708917,3.2078,1813.5,1813.4,55.71306]
[1746480710121,3.2078,1813.5,1813.4,50.71306]
[1746480712518,3.2078,1813.7,1813.6,1.10294]
[1746480713223,3.2078,1813.7,1813.6,2.76224]
[1746480713414,3.2078,1813.9,1813.8,1.10282]
[1746480713723,3.2078,1813.9,1813.8,7.94082]
[1746480714119,3.2078,1813.9,1813.8,11.67282]
[1746480714922,3.2078,1814.1,1813.9,1.10276]
[1746480715221,3.2078,1814.1,1814.0,1.1027]
[1746480715621,3.2078,1814.1,1814.0,2.6719]
[1746480720524,1.10256,1814.3,1814.2,1.10257]
[1746480720826,4.31036,1814.3,1814.2,4.72557]
[1746480721427,8.04236,1814.3,1814.2,6.39267]
[1746480723227,4.31036,1814.3,1814.2,6.39267]
[1746480723821,5.94586,1814.3,1814.2,6.39267]
[1746480724222,9.67786,1814.3,1814.2,6.39267]
[1746480730926,9.67786,1814.3,1814.2,5.2901]
[1746480732337,9.67786,1814.3,1814.2,6.39267]
[1746480735931,8.04236,1814.3,1814.2,6.39267]
[1746480736137,6.9398,1814.3,1814.2,7.21667]
[1746480737226,3.2078,1814.3,1814.2,7.21667]
[1746480738533,1.1024,1814.5,1814.4,1.10245]
[1746480738929,4.3102,1814.5,1814.4,1.91505]
[1746480739129,8.0422,1814.5,1814.4,1.91505]
[1746480739637,8.0422,1814.5,1814.4,0.8126]
[1746480739834,8.0422,1814.5,1814.4,1.91505]
[1746480741241,4.3102,1814.5,1814.4,1.91505]
[1746480743337,3.2078,1814.5,1814.4,1.91505]
[1746480743844,4.31019,1814.5,1814.4,3.48835]
[1746480745944,3.2078,1814.5,1814.4,3.48835]
[1746480746344,4.31019,1814.5,1814.4,3.48835]
[1746480748742,4.31019,1814.5,1814.4,5.1553]
[1746480748947,5.97239,1814.5,1814.4,5.1553]
[1746480749148,9.70439,1814.5,1814.4,5.1553]
[1746480751847,13.602,1814.5,1813.5,0.00662222]
[1746480752054,1.10286,1813.8,1813.7,1.6088]
[1746480752343,4.3106,1813.9,1813.7,1.6088]
[1746480752550,4.3106,1813.9,1813.8,0.7947]
[1746480752949,3.2078,1813.9,1813.8,1.89752]
[1746480753251,4.31056,1813.9,1813.8,5.62952]
[1746480754650,3.2078,1813.9,1813.8,5.62952]
[1746480755252,4.31056,1813.9,1813.8,5.62952]
[1746480755657,3.2078,1813.9,1813.8,5.62952]
[1746480755955,4.31056,1813.9,1813.8,5.62952]
[1746480757260,3.2078,1813.9,1813.8,5.62952]
[1746480757758,4.31056,1813.9,1813.8,5.62952]
[1746480759450,4.31056,1813.9,1813.8,9.21152]
[1746480762259,1.10276,1813.9,1813.8,9.21152]
[1746480762459,4.31056,1813.9,1813.8,9.21152]
[1746480765462,1.10276,1813.9,1813.8,10.77482]
[1746480765764,4.31056,1813.9,1813.8,10.77482]
[1746480766362,4.31056,1813.9,1813.8,9.672]
[1746480766565,6.65716,1813.9,1813.8,7.19282]
[1746480766758,6.65716,1813.9,1813.8,10.77482]
[1746480766958,6.65716,1813.9,1813.8,7.19282]
[1746480767161,6.65716,1813.9,1813.8,7.04282]
[1746480768164,6.65716,1813.9,1813.8,10.77482]
[1746480769163,6.65716,1813.9,1813.8,7.19282]
[1746480769367,11.65716,1813.9,1813.8,3.732]
[1746480770165,1.10288,1813.7,1813.6,2.81023]
[1746480770366,4.31068,1813.7,1813.6,2.81023]
[1746480772364,4.31068,1813.7,1813.6,1.7073]
[1746480773167,4.31068,1813.7,1813.6,5.2903]
[1746480773469,4.31068,1813.7,1813.6,1.7073]
[1746480773661,4.31068,1813.7,1813.6,6.39324]
[1746480773862,4.31068,1813.7,1813.6,5.2903]
[1746480774760,4.31068,1813.7,1813.6,6.39324]
[1746480776567,4.31068,1813.7,1813.6,5.2903]
[1746480776762,4.31068,1813.7,1813.6,2.81024]
[1746480776963,1.10294,1813.6,1813.5,4.84158222]
[1746480777166,1.10294,1813.6,1813.5,8.42458222]
[1746480778171,1.10294,1813.6,1813.5,10.11778222]
[1746480779875,4.31072,1813.7,1813.6,1.10294]
[1746480780173,4.31072,1813.7,1813.6,2.73504]
[1746480783278,1.10294,1813.6,1813.5,4.84161222]
[1746480783482,3.51304,1813.6,1813.5,7.32162222]
[1746480783671,3.51304,1813.6,1813.5,8.42462222]
[1746480783978,3.51304,1813.6,1813.5,10.07782222]
[1746480784174,3.51304,1813.6,1813.5,6.34582222]
[1746480786484,3.51304,1813.6,1813.5,5.24282222]
[1746480787482,3.51304,1813.6,1813.5,6.34582222]
[1746480787775,1.10343,1812.8,1812.7,7.26219907]
[1746480787972,1.10343,1812.8,1812.7,8.93779907]
[1746480788170,1.10343,1812.8,1812.7,7.26219907]
[1746480788171,4.31123,1812.8,1812.7,7.26219907]
[1746480789475,3.2078,1812.8,1812.7,8.98869907]
[1746480789674,1.10333,1813.0,1812.7,8.98869907]
[1746480789976,4.31123,1812.8,1812.7,7.26219907]
[1746480790173,4.31123,1812.8,1812.7,9.79829907]
[1746480790174,1.10343,1812.8,1812.7,9.79829907]
[1746480790782,4.31123,1812.8,1812.7,9.79829907]
[1746480791984,4.31123,1812.8,1812.7,2.5361]
[1746480794084,3.2078,1813.0,1812.7,6.1201]
[1746480794287,1.10337,1812.9,1812.8,2.83197]
[1746480794583,4.31112,1813.0,1812.9,1.10337]
[1746480794783,4.31112,1813.0,1812.9,3.59187]
[1746480797987,3.2078,1813.0,1812.9,3.59187]
[1746480798187,4.3111,1813.0,1812.9,3.59187]
[1746480798885,3.2078,1813.0,1812.9,3.59187]
[1746480799087,4.3111,1813.0,1812.9,3.59187]
[1746480799491,3.2078,1813.0,1812.9,3.59187]
[1746480799786,4.3111,1813.0,1812.9,3.59187]
[1746480800290,3.2078,1813.0,1812.9,3.59187]
[1746480800481,4.3111,1813.0,1812.9,3.59187]
[1746480804894,3.2078,1813.0,1812.9,3.59187]
[1746480805192,3.2078,1813.0,1812.9,7.32387]
[1746480809495,1.10323,1813.2,1813.1,1.10324]
[1746480809695,4.31103,1813.2,1813.1,1.10324]
[1746480809892,4.31103,1813.2,1813.1,2.79514]
[1746480813000,4.31103,1813.2,1813.1,1.6919]
[1746480813200,1.10324,1813.1,1813.0,5.63666]
[1746480813392,2.69744,1813.1,1813.0,5.63666]
[1746480814294,2.75827,1813.0,1812.5,43.55891]